[Event "Rapide Futuroscope"]
[Site "Futuroscope, France"]
[Date "2019.12.01"]
[Round "1.2"]
[White "Edouard, Romain"]
[Black "Barbotte, Jeanne"]
[Result "1-0"]
[TimeControl "15' + 3''"]
[WhiteElo "2635"]
[BlackElo "1629"]

1. d4 {[%clk 00:15:05]} {[%emt 01:54:41]} Nf6 {[%clk 00:15:04]} {[%emt
00:00:02]} 2. c4 {[%clk 00:15:06]} {[%emt 00:00:02]} e6 {[%clk 00:15:03]}
{[%emt 00:00:03]} 3. Nc3 {[%clk 00:15:07]} {[%emt 00:00:01]} Bb4 {[%clk
00:15:02]} {[%emt 00:00:05]} 4. Nf3 {[%clk 00:15:08]} {[%emt 00:00:02]} b6
{[%clk 00:14:55]} {[%emt 00:00:09]} 5. Qb3 {[%clk 00:15:08]} {[%emt 00:00:03]}
Bxc3+ 6. Qxc3 {[%clk 00:15:09]} Bb7 {[%clk 00:14:41]} {[%emt 00:00:15]} 7. g3
{[%clk 00:15:05]} {[%emt 00:00:07]} O-O {[%clk 00:14:12]} {[%emt 00:00:32]} 8.
Bg2 {[%clk 00:15:06]} {[%emt 00:00:02]} Ne4 {[%clk 00:13:34]} {[%emt 00:00:42]}
9. Qc2 {[%clk 00:15:06]} {[%emt 00:00:04]} d5 {[%clk 00:12:51]} {[%emt
00:00:46]} 10. O-O {[%clk 00:14:59]} {[%emt 00:00:09]} Nd7 {[%clk 00:12:35]}
{[%emt 00:00:20]} 11. Bf4 {[%clk 00:14:55]} {[%emt 00:00:06]} Rc8 {[%clk
00:11:45]} {[%emt 00:00:53]} 12. Ne5 {[%clk 00:14:47]} {[%emt 00:00:12]} Nxe5
{[%clk 00:10:26]} {[%emt 00:01:22]} 13. dxe5 {[%clk 00:14:47]} {[%emt
00:00:03]} a5 {[%clk 00:09:17]} {[%emt 00:01:12]} 14. Rad1 {[%clk 00:14:44]}
{[%emt 00:00:04]} Qe7 {[%clk 00:09:09]} {[%emt 00:00:11]} 15. h4 {[%clk
00:13:45]} {[%emt 00:01:02]} h6 {[%clk 00:08:35]} {[%emt 00:00:38]} 16. Kh2
{[%clk 00:13:09]} {[%emt 00:00:38]} g5 {[%clk 00:07:08]} {[%emt 00:01:30]} 17.
hxg5 {[%clk 00:13:09]} {[%emt 00:00:03]} hxg5 {[%clk 00:07:07]} {[%emt
00:00:04]} 18. Be3 {[%clk 00:13:10]} {[%emt 00:00:03]} Kg7 {[%clk 00:06:55]}
{[%emt 00:00:15]} 19. Bxe4 {[%clk 00:12:44]} {[%emt 00:00:28]} dxe4 {[%clk
00:06:57]} {[%emt 00:00:02]} 20. Kg2 {[%clk 00:12:45]} {[%emt 00:00:02]} Rh8
{[%clk 00:06:51]} {[%emt 00:00:09]} 21. Rh1 {[%clk 00:12:32]} {[%emt 00:00:15]}
Rcd8 {[%clk 00:05:21]} {[%emt 00:01:33]} 22. Qc1 {[%clk 00:12:13]} {[%emt
00:00:22]} Rxd1 {[%clk 00:05:10]} {[%emt 00:00:15]} 23. Qxd1 {[%clk 00:12:14]}
{[%emt 00:00:01]} c5 {[%clk 00:03:10]} {[%emt 00:02:04]} 24. Rxh8 {[%clk
00:11:52]} {[%emt 00:00:25]} Kxh8 {[%clk 00:03:12]} {[%emt 00:00:01]} 25. Qh1+
{[%clk 00:11:52]} {[%emt 00:00:02]} Kg7 {[%clk 00:03:01]} {[%emt 00:00:14]} 26.
Qh5 {[%clk 00:11:54]} {[%emt 00:00:02]} f6 {[%clk 00:02:16]} {[%emt 00:00:48]}
27. exf6+ {[%clk 00:11:54]} {[%emt 00:00:02]} Qxf6 {[%clk 00:02:19]} {[%emt
00:00:01]} 28. Qe8 {[%clk 00:11:53]} {[%emt 00:00:03]} Ba6 {[%clk 00:01:21]}
{[%emt 00:01:03]} 29. b3 {[%clk 00:11:52]} {[%emt 00:00:03]} Bb7 {[%clk
00:00:56]} {[%emt 00:00:28]} 30. Qd7+ {[%clk 00:11:52]} {[%emt 00:00:03]} Qf7
{[%clk 00:00:57]} {[%emt 00:00:02]} 31. Qd8 {[%clk 00:11:53]} {[%emt 00:00:02]}
Qf6 {[%clk 00:00:51]} {[%emt 00:00:10]} 32. Qxb6 {[%clk 00:11:48]} {[%emt
00:00:08]} 1-0

[Event "Rapide Futuroscope"]
[Site "Futuroscope, France"]
[Date "2019.12.01"]
[Round "1.4"]
[White "Demuth, Adrien"]
[Black "Pichon, Ewen"]
[Result "1/2-1/2"]
[TimeControl "15' + 3''"]
[WhiteElo "2502"]
[BlackElo "1744"]

1. Nf3 {[%clk 00:15:03]} {[%emt 01:37:56]} Nf6 {[%clk 00:14:58]} {[%emt
00:00:09]} 2. c4 {[%clk 00:15:04]} {[%emt 00:00:02]} c5 {[%clk 00:14:51]}
{[%emt 00:00:10]} 3. b3 {[%clk 00:15:05]} {[%emt 00:00:02]} g6 {[%clk
00:14:44]} {[%emt 00:00:10]} 4. Bb2 {[%clk 00:15:06]} {[%emt 00:00:02]} Bg7
{[%clk 00:14:45]} {[%emt 00:00:01]} 5. g3 {[%clk 00:15:08]} d6 {[%clk
00:14:17]} {[%emt 00:00:33]} 6. Bg2 {[%clk 00:15:07]} {[%emt 00:00:05]} Nc6
{[%clk 00:14:18]} {[%emt 00:00:01]} 7. O-O {[%clk 00:15:07]} {[%emt 00:00:03]}
O-O {[%clk 00:14:20]} {[%emt 00:00:02]} 8. d4 {[%clk 00:15:09]} {[%emt
00:00:02]} cxd4 {[%clk 00:13:47]} {[%emt 00:00:35]} 9. Nxd4 {[%clk 00:15:10]}
{[%emt 00:00:02]} Bd7 {[%clk 00:13:48]} {[%emt 00:00:02]} 10. Nc3 {[%clk
00:15:11]} {[%emt 00:00:02]} a6 {[%clk 00:13:35]} {[%emt 00:00:15]} 11. e3
{[%clk 00:14:57]} {[%emt 00:00:16]} Rc8 {[%clk 00:13:25]} {[%emt 00:00:13]} 12.
Qe2 {[%clk 00:14:50]} {[%emt 00:00:11]} Qc7 {[%clk 00:12:52]} {[%emt 00:00:37]}
13. Rac1 {[%clk 00:14:48]} {[%emt 00:00:04]} Rfd8 {[%clk 00:12:52]} {[%emt
00:00:03]} 14. Rfd1 {[%clk 00:13:38]} {[%emt 00:01:14]} Qb8 {[%clk 00:12:50]}
{[%emt 00:00:04]} 15. h3 {[%clk 00:13:27]} {[%emt 00:00:14]} h5 {[%clk
00:12:18]} {[%emt 00:00:35]} 16. Nf3 {[%clk 00:12:34]} {[%emt 00:00:56]} Qa7
{[%clk 00:12:01]} {[%emt 00:00:21]} 17. Ng5 {[%clk 00:12:27]} {[%emt 00:00:09]}
Be8 {[%clk 00:10:33]} {[%emt 00:01:32]} 18. Rd2 {[%clk 00:11:37]} {[%emt
00:00:53]} Ne5 {[%clk 00:09:41]} {[%emt 00:00:54]} 19. Rcd1 {[%clk 00:10:53]}
{[%emt 00:00:47]} Bc6 {[%clk 00:09:40]} {[%emt 00:00:03]} 20. Bxc6 {[%clk
00:10:26]} {[%emt 00:00:30]} bxc6 {[%clk 00:09:35]} {[%emt 00:00:08]} 21. Nce4
{[%clk 00:10:06]} {[%emt 00:00:24]} Nxe4 {[%clk 00:09:29]} {[%emt 00:00:09]} 22.
Nxe4 {[%clk 00:10:07]} {[%emt 00:00:01]} Nd7 {[%clk 00:09:21]} {[%emt
00:00:10]} 23. Bxg7 {[%clk 00:09:32]} {[%emt 00:00:38]} Kxg7 {[%clk 00:09:23]}
{[%emt 00:00:02]} 24. Qd3 {[%clk 00:09:34]} {[%emt 00:00:02]} Ne5 {[%clk
00:09:11]} {[%emt 00:00:15]} 25. Qc3 {[%clk 00:09:23]} {[%emt 00:00:14]} f6
{[%clk 00:08:56]} {[%emt 00:00:18]} 26. Kg2 {[%clk 00:09:23]} {[%emt 00:00:02]}
Nf7 {[%clk 00:08:35]} {[%emt 00:00:25]} 27. g4 {[%clk 00:09:14]} {[%emt
00:00:13]} hxg4 {[%clk 00:08:29]} {[%emt 00:00:09]} 28. hxg4 {[%clk 00:09:15]}
{[%emt 00:00:01]} Qd7 {[%clk 00:08:28]} {[%emt 00:00:04]} 29. f3 {[%clk
00:08:04]} {[%emt 00:01:14]} Ne5 {[%clk 00:07:33]} {[%emt 00:00:58]} 30. Rh1
{[%clk 00:06:02]} {[%emt 00:02:05]} Rh8 {[%clk 00:07:18]} {[%emt 00:00:18]} 31.
Rdd1 {[%clk 00:06:04]} {[%emt 00:00:01]} Rxh1 {[%clk 00:07:17]} {[%emt
00:00:04]} 32. Rxh1 {[%clk 00:06:05]} {[%emt 00:00:01]} Rh8 {[%clk 00:07:19]}
{[%emt 00:00:01]} 33. Rxh8 {[%clk 00:05:00]} {[%emt 00:01:07]} Kxh8 {[%clk
00:07:20]} {[%emt 00:00:02]} 34. Ng3 {[%clk 00:05:01]} {[%emt 00:00:02]} Kg7
{[%clk 00:07:12]} {[%emt 00:00:11]} 35. Qd4 {[%clk 00:04:57]} {[%emt 00:00:07]}
c5 {[%clk 00:07:04]} {[%emt 00:00:10]} 36. Qf4 {[%clk 00:03:50]} {[%emt
00:01:10]} a5 {[%clk 00:06:26]} {[%emt 00:00:41]} 37. g5 {[%clk 00:03:27]}
{[%emt 00:00:26]} f5 {[%clk 00:05:38]} {[%emt 00:00:51]} 38. Qh4 {[%clk
00:03:20]} {[%emt 00:00:10]} Nf7 {[%clk 00:05:40]} {[%emt 00:00:01]} 39. e4
{[%clk 00:02:00]} {[%emt 00:01:23]} fxe4 {[%clk 00:05:19]} {[%emt 00:00:24]} 40.
Nxe4 {[%clk 00:02:01]} {[%emt 00:00:02]} Qf5 {[%clk 00:05:17]} {[%emt
00:00:04]} 41. Kg3 {[%clk 00:02:01]} {[%emt 00:00:04]} e6 {[%clk 00:04:58]}
{[%emt 00:00:22]} 42. Qf4 {[%clk 00:01:47]} {[%emt 00:00:16]} Qxf4+ {[%clk
00:04:27]} {[%emt 00:00:34]} 43. Kxf4 {[%clk 00:01:49]} {[%emt 00:00:02]} Kf8
{[%clk 00:04:29]} {[%emt 00:00:02]} 44. Ke3 {[%clk 00:01:22]} {[%emt 00:00:30]}
Ke7 {[%clk 00:04:30]} {[%emt 00:00:01]} 45. f4 {[%clk 00:01:23]} {[%emt
00:00:02]} Nd8 {[%clk 00:04:21]} {[%emt 00:00:12]} 46. Nc3 {[%clk 00:00:32]}
{[%emt 00:00:55]} Nc6 {[%clk 00:04:16]} {[%emt 00:00:08]} 47. Ke4 {[%clk
00:00:34]} {[%emt 00:00:01]} Na7 {[%clk 00:03:46]} {[%emt 00:00:33]} 48. Ne2
{[%clk 00:00:28]} {[%emt 00:00:09]} Nc6 {[%clk 00:03:45]} {[%emt 00:00:04]} 49.
Nc3 {[%clk 00:00:28]} {[%emt 00:00:04]} Na7 {[%clk 00:03:47]} {[%emt 00:00:01]}
50. Kd3 {[%clk 00:00:27]} {[%emt 00:00:04]} Nc6 {[%clk 00:03:38]} {[%emt
00:00:12]} 51. Kc2 {[%clk 00:00:28]} {[%emt 00:00:02]} Nd4+ {[%clk 00:03:33]}
{[%emt 00:00:08]} 52. Kb2 {[%clk 00:00:29]} {[%emt 00:00:02]} Kd7 {[%clk
00:03:21]} {[%emt 00:00:15]} 53. Ka3 {[%clk 00:00:30]} {[%emt 00:00:03]} Kc6
{[%clk 00:03:19]} {[%emt 00:00:05]} 54. Ka4 {[%clk 00:00:32]} {[%emt 00:00:01]}
Kb6 {[%clk 00:03:19]} {[%emt 00:00:02]} 55. Ne4 {[%clk 00:00:34]} {[%emt
00:00:02]} d5 {[%clk 00:03:18]} {[%emt 00:00:05]} 56. cxd5 {[%clk 00:00:27]}
{[%emt 00:00:10]} exd5 {[%clk 00:03:19]} {[%emt 00:00:02]} 57. Nc3 {[%clk
00:00:29]} Kc6 {[%clk 00:03:12]} {[%emt 00:00:10]} 58. Kxa5 {[%clk 00:00:30]}
{[%emt 00:00:01]} Ne6 {[%clk 00:03:14]} 59. a3 {[%clk 00:00:13]} {[%emt
00:00:21]} d4 {[%clk 00:03:06]} {[%emt 00:00:10]} 60. Nd1 {[%clk 00:00:07]}
{[%emt 00:00:09]} Nxf4 {[%clk 00:03:05]} {[%emt 00:00:04]} 61. b4 {[%clk
00:00:10]} c4 {[%clk 00:03:06]} {[%emt 00:00:02]} 62. b5+ {[%clk 00:00:09]}
{[%emt 00:00:04]} Kb7 {[%clk 00:02:59]} {[%emt 00:00:09]} 63. Kb4 {[%clk
00:00:11]} {[%emt 00:00:02]} c3 {[%clk 00:03:01]} 64. Nxc3 {[%clk 00:00:08]}
{[%emt 00:00:07]} dxc3 65. Kxc3 {[%clk 00:00:09]} Ne6 {[%clk 00:03:05]} 66. Kd3
{[%clk 00:00:09]} {[%emt 00:00:04]} Nxg5 {[%clk 00:03:05]} {[%emt 00:00:03]} 67.
Ke3 {[%clk 00:00:09]} {[%emt 00:00:03]} Ne6 {[%clk 00:03:06]} {[%emt 00:00:02]}
68. Kf3 {[%clk 00:00:09]} {[%emt 00:00:03]} Kb6 {[%clk 00:03:06]} {[%emt
00:00:03]} 69. a4 {[%clk 00:00:11]} {[%emt 00:00:01]} Nd4+ {[%clk 00:02:54]}
{[%emt 00:00:14]} 70. Kg4 {[%clk 00:00:12]} {[%emt 00:00:02]} Nxb5 {[%clk
00:02:57]} {[%emt 00:00:01]} 71. axb5 {[%clk 00:00:14]} {[%emt 00:00:01]} Kxb5
{[%clk 00:02:59]} 72. Kg5 {[%clk 00:00:16]} {[%emt 00:00:01]} 1/2-1/2

[Event "Rapide Futuroscope"]
[Site "Futuroscope, France"]
[Date "2019.12.01"]
[Round "1.3"]
[White "Accouri, Pascal"]
[Black "Sochacki, Christophe"]
[Result "0-1"]
[TimeControl "15' + 3''"]
[WhiteElo "1709"]
[BlackElo "2484"]

1. c4 {[%clk 00:15:03]} {[%emt 00:00:02]} e5 {[%clk 00:15:02]} {[%emt
00:00:05]} 2. Nc3 {[%clk 00:15:04]} {[%emt 00:00:02]} Nf6 {[%clk 00:15:00]}
{[%emt 00:00:06]} 3. e4 {[%clk 00:15:04]} {[%emt 00:00:02]} Nc6 {[%clk
00:14:31]} {[%emt 00:00:33]} 4. g3 {[%clk 00:15:04]} {[%emt 00:00:02]} Nd4
{[%clk 00:14:26]} {[%emt 00:00:09]} 5. Bg2 {[%clk 00:15:00]} {[%emt 00:00:08]}
a6 {[%clk 00:14:20]} {[%emt 00:00:09]} 6. Nge2 {[%clk 00:14:59]} {[%emt
00:00:02]} Bc5 {[%clk 00:14:11]} {[%emt 00:00:12]} 7. Nxd4 {[%clk 00:14:29]}
{[%emt 00:00:33]} Bxd4 {[%clk 00:13:54]} {[%emt 00:00:20]} 8. d3 {[%clk
00:14:17]} {[%emt 00:00:14]} d6 {[%clk 00:13:22]} {[%emt 00:00:36]} 9. h3
{[%clk 00:14:12]} {[%emt 00:00:07]} c6 {[%clk 00:13:16]} {[%emt 00:00:09]} 10.
O-O {[%clk 00:13:25]} {[%emt 00:00:50]} b5 {[%clk 00:13:10]} {[%emt 00:00:10]}
11. Kh2 {[%clk 00:13:11]} {[%emt 00:00:16]} Be6 {[%clk 00:12:32]} {[%emt
00:00:42]} 12. Ne2 {[%clk 00:13:00]} {[%emt 00:00:14]} Ba7 {[%clk 00:11:28]}
{[%emt 00:01:08]} 13. b3 {[%clk 00:12:55]} {[%emt 00:00:08]} a5 {[%clk
00:09:32]} {[%emt 00:01:59]} 14. Bb2 {[%clk 00:12:10]} {[%emt 00:00:47]} Qc7
{[%clk 00:09:12]} {[%emt 00:00:23]} 15. cxb5 {[%clk 00:11:28]} {[%emt
00:00:46]} cxb5 {[%clk 00:09:13]} {[%emt 00:00:02]} 16. Rc1 {[%clk 00:11:16]}
{[%emt 00:00:13]} Qb7 {[%clk 00:08:20]} {[%emt 00:00:57]} 17. f4 {[%clk
00:10:55]} {[%emt 00:00:24]} h5 {[%clk 00:08:20]} {[%emt 00:00:04]} 18. fxe5
{[%clk 00:10:23]} {[%emt 00:00:35]} Ng4+ {[%clk 00:07:26]} {[%emt 00:00:56]} 19.
hxg4 {[%clk 00:09:42]} {[%emt 00:00:45]} hxg4+ {[%clk 00:07:27]} {[%emt
00:00:03]} 20. Bh3 {[%clk 00:09:44]} dxe5 {[%clk 00:06:53]} {[%emt 00:00:38]}
21. Bxe5 {[%clk 00:09:06]} {[%emt 00:00:40]} Rxh3+ {[%clk 00:04:57]} {[%emt
00:02:00]} 22. Kg2 {[%clk 00:09:08]} f6 {[%clk 00:04:18]} {[%emt 00:00:43]} 23.
Nf4 {[%clk 00:08:13]} {[%emt 00:00:58]} g5 {[%clk 00:03:31]} {[%emt 00:00:50]}
24. Nxe6 {[%clk 00:07:25]} {[%emt 00:00:50]} Rh2+ {[%clk 00:03:30]} {[%emt
00:00:04]} 0-1

[Event "Rapide Futuroscope"]
[Site "Futuroscope, France"]
[Date "2019.12.01"]
[Round "1.5"]
[White "Palomar, Felix"]
[Black "Tranchant, Sebastien"]
[Result "0-1"]
[TimeControl "15' + 3''"]
[WhiteElo "1612"]
[BlackElo "2304"]

1. e4 {[%clk 00:15:02]} c5 {[%clk 00:15:05]} {[%emt 21:55:15]} 2. Nf3 {[%clk
00:15:02]} g6 {[%clk 00:15:05]} 3. d4 {[%clk 00:15:02]} cxd4 {[%clk 00:15:05]}
4. Nxd4 {[%clk 00:15:02]} Nc6 {[%clk 00:15:05]} 5. Nc3 {[%clk 00:15:02]} Bg7
{[%clk 00:15:05]} 6. Be3 {[%clk 00:15:02]} Nf6 {[%clk 00:15:05]} 7. Bc4 {[%clk
00:15:02]} Qa5 {[%clk 00:15:05]} 8. f3 {[%clk 00:15:02]} Qb4 {[%clk 00:15:05]}
9. Bb3 {[%clk 00:15:02]} Nxe4 {[%clk 00:15:05]} 10. Nxc6 {[%clk 00:15:02]}
Bxc3+ {[%clk 00:15:05]} 11. bxc3 {[%clk 00:15:02]} Qxc3+ {[%clk 00:15:05]} 12.
Ke2 {[%clk 00:15:02]} dxc6 {[%clk 00:15:05]} 13. Bd4 {[%clk 00:15:02]} e5
{[%clk 00:15:05]} 14. fxe4 {[%clk 00:15:02]} exd4 {[%clk 00:15:05]} 15. h3
{[%clk 00:15:02]} Qe3+ {[%clk 00:15:05]} 16. Kf1 {[%clk 00:15:02]} Qxe4 {[%clk
00:15:05]} 17. Qd2 {[%clk 00:15:02]} Be6 {[%clk 00:15:05]} 0-1

[ePGN "0.1;DGT LiveChess/2.2.5"]

[Event "Rapide Futuroscope"]
[Site "Futuroscope, France"]
[Date "2019.12.01"]
[Round "2.5"]
[White "Paraillous, Maxime"]
[Black "SAADA, Julien"]
[Result "0-1"]
[TimeControl "15' + 3''"]
[BlackTitle "FM"]
[BlackFideId "625388"]
[WhiteElo "1904"]
[BlackElo "2316"]

1. c4 {[%clk 00:15:02]} e6 {[%clk 00:15:05]} 2. g3 {[%clk 00:15:02]} d5 {[%clk
00:15:05]} 3. Bg2 {[%clk 00:15:02]} Nf6 {[%clk 00:15:05]} 4. Nf3 {[%clk
00:15:02]} dxc4 {[%clk 00:15:05]} 5. O-O {[%clk 00:15:02]} Nbd7 {[%clk
00:15:05]} 6. Qa4 {[%clk 00:15:02]} a6 {[%clk 00:15:05]} 7. Qxc4 {[%clk
00:15:02]} b5 {[%clk 00:15:05]} 8. Qc2 {[%clk 00:15:02]} Bb7 {[%clk 00:15:05]}
9. b3 {[%clk 00:15:02]} Be7 {[%clk 00:15:05]} 10. Bb2 {[%clk 00:15:02]} c5
{[%clk 00:15:05]} 11. d3 {[%clk 00:15:02]} O-O {[%clk 00:15:05]} 12. Nbd2
{[%clk 00:15:02]} Qb6 {[%clk 00:15:05]} 13. Rac1 {[%clk 00:15:02]} Rac8 {[%clk
00:15:05]} 14. Qb1 {[%clk 00:15:02]} Rfd8 {[%clk 00:15:05]} 15. Qa1 {[%clk
00:15:02]} Bd5 {[%clk 00:15:05]} 16. Ne5 {[%clk 00:15:02]} Bxg2 {[%clk
00:15:05]} 17. Kxg2 {[%clk 00:15:02]} Qb7+ {[%clk 00:15:05]} 18. Ndf3 {[%clk
00:15:02]} Nb6 {[%clk 00:15:05]} 19. Kg1 {[%clk 00:15:02]} Ne8 {[%clk
00:15:05]} 20. Nd2 {[%clk 00:15:02]} f6 {[%clk 00:15:05]} 21. Nef3 {[%clk
00:15:02]} e5 {[%clk 00:15:05]} 22. Rfd1 {[%clk 00:15:02]} Nc7 {[%clk
00:15:05]} 23. Ba3 {[%clk 00:15:02]} Ne6 {[%clk 00:15:05]} 24. Rc2 {[%clk
00:15:02]} Nd4 {[%clk 00:15:05]} 25. Nxd4 {[%clk 00:15:02]} exd4 {[%clk
00:15:05]} 26. Rdc1 {[%clk 00:15:02]} b4 {[%clk 00:15:05]} 27. Bb2 {[%clk
00:15:02]} Nd5 {[%clk 00:15:05]} 28. Ne4 {[%clk 00:15:02]} Nc3 {[%clk
00:15:05]} 29. Nxc3 {[%clk 00:15:02]} dxc3 {[%clk 00:15:05]} 30. Bxc3 {[%clk
00:15:02]} bxc3 {[%clk 00:15:05]} 31. Qxc3 {[%clk 00:15:02]} Qd5 {[%clk
00:15:05]} 32. Qc4 {[%clk 00:15:02]} Qxc4 {[%clk 00:15:05]} 33. Rxc4 {[%clk
00:15:02]} Rb8 {[%clk 00:15:05]} 34. Kg2 {[%clk 00:15:02]} Kf7 {[%clk
00:15:05]} 35. Kf3 {[%clk 00:15:02]} f5 {[%clk 00:15:05]} 36. Ra4 {[%clk
00:15:02]} Rb6 {[%clk 00:15:05]} 37. Rcc4 {[%clk 00:15:02]} h5 {[%clk
00:15:05]} 38. Ra5 {[%clk 00:15:02]} Kf6 {[%clk 00:15:05]} 39. h4 {[%clk
00:15:02]} g6 {[%clk 00:15:05]} 40. Rca4 {[%clk 00:15:02]} Rdd6 {[%clk
00:15:05]} 41. Rc4 {[%clk 00:15:02]} Re6 {[%clk 00:15:05]} 42. Rca4 {[%clk
00:15:02]} Bf8 {[%clk 00:15:05]} 43. Rc4 {[%clk 00:15:02]} Rb4 {[%clk
00:15:05]} 44. Rxb4 {[%clk 00:15:02]} cxb4 {[%clk 00:15:05]} 45. Ra4 {[%clk
00:15:02]} Ke5 {[%clk 00:15:05]} 46. e3 {[%clk 00:15:02]} Kd5 {[%clk 00:15:05]}
47. Ra5+ {[%clk 00:15:02]} Kd6 {[%clk 00:15:05]} 48. Rxa6+ {[%clk 00:15:02]}
Ke5 {[%clk 00:15:05]} 49. Ra5+ {[%clk 00:15:02]} Kf6 {[%clk 00:15:05]} 0-1

[Event "Rapide Futuroscope"]
[Site "Futuroscope, France"]
[Date "2019.12.01"]
[Round "2.1"]
[White "LAGARDE, Maxime"]
[Black "Valette, Christian"]
[Result "1-0"]
[TimeControl "15' + 3''"]
[WhiteTitle "GM"]
[WhiteFideId "662399"]
[WhiteElo "2661"]
[BlackElo "2043"]

1. e4 {[%clk 00:15:05]} {[%emt 00:13:57]} e6 {[%clk 00:15:05]} {[%emt
00:00:01]} 2. d4 {[%clk 00:15:07]} {[%emt 00:00:01]} d5 {[%clk 00:15:07]}
{[%emt 00:00:01]} 3. e5 {[%clk 00:15:07]} {[%emt 00:00:03]} c5 {[%clk
00:15:09]} {[%emt 00:00:01]} 4. c3 {[%clk 00:15:09]} {[%emt 00:00:01]} Qb6
{[%clk 00:15:08]} {[%emt 00:00:04]} 5. Nf3 {[%clk 00:15:10]} {[%emt 00:00:01]}
Nc6 {[%clk 00:15:06]} {[%emt 00:00:05]} 6. a3 {[%clk 00:15:12]} Nh6 {[%clk
00:15:05]} {[%emt 00:00:03]} 7. b4 {[%clk 00:15:10]} {[%emt 00:00:06]} cxd4
{[%clk 00:15:07]} {[%emt 00:00:01]} 8. cxd4 {[%clk 00:15:12]} {[%emt 00:00:02]}
Nf5 {[%clk 00:15:09]} 9. Be3 {[%clk 00:15:13]} Be7 {[%clk 00:14:51]} {[%emt
00:00:20]} 10. Bd3 {[%clk 00:15:10]} {[%emt 00:00:07]} O-O {[%clk 00:14:37]}
{[%emt 00:00:17]} 11. Nc3 {[%clk 00:14:46]} {[%emt 00:00:27]} Nxe3 {[%clk
00:14:22]} {[%emt 00:00:18]} 12. fxe3 {[%clk 00:14:47]} {[%emt 00:00:02]} f6
{[%clk 00:14:16]} {[%emt 00:00:10]} 13. exf6 {[%clk 00:14:47]} {[%emt
00:00:04]} Bxf6 {[%clk 00:14:09]} {[%emt 00:00:09]} 14. Rc1 {[%clk 00:14:33]}
{[%emt 00:00:17]} Bd7 {[%clk 00:13:58]} {[%emt 00:00:14]} 15. O-O {[%clk
00:14:31]} {[%emt 00:00:05]} Rac8 {[%clk 00:13:35]} {[%emt 00:00:26]} 16. Qc2
{[%clk 00:13:38]} {[%emt 00:00:55]} h6 {[%clk 00:13:02]} {[%emt 00:00:36]} 17.
Qd2 {[%clk 00:13:38]} {[%emt 00:00:04]} Qd8 {[%clk 00:12:35]} {[%emt 00:00:30]}
18. Bb1 {[%clk 00:13:01]} {[%emt 00:00:40]} Ne7 {[%clk 00:11:45]} {[%emt
00:00:53]} 19. Qd3 {[%clk 00:12:17]} {[%emt 00:00:47]} g6 {[%clk 00:10:47]}
{[%emt 00:01:00]} 20. Ne2 {[%clk 00:11:50]} {[%emt 00:00:31]} Qe8 {[%clk
00:09:31]} {[%emt 00:01:19]} 21. Nf4 {[%clk 00:11:42]} {[%emt 00:00:12]} Kg7
{[%clk 00:08:18]} {[%emt 00:01:16]} 22. Rxc8 {[%clk 00:07:01]} {[%emt
00:04:44]} Bxc8 {[%clk 00:08:15]} {[%emt 00:00:06]} 23. Rc1 {[%clk 00:06:35]}
{[%emt 00:00:29]} Bd7 {[%clk 00:06:41]} {[%emt 00:01:37]} 24. Rc7 {[%clk
00:06:12]} {[%emt 00:00:26]} Rh8 {[%clk 00:01:39]} {[%emt 00:05:05]} 25. Nxg6
{[%clk 00:04:57]} {[%emt 00:01:18]} Qxg6 {[%clk 00:00:45]} {[%emt 00:00:57]} 26.
Qxg6+ {[%clk 00:04:58]} {[%emt 00:00:03]} Nxg6 {[%clk 00:00:39]} {[%emt
00:00:10]} 27. Rxd7+ {[%clk 00:04:53]} {[%emt 00:00:08]} 1-0